bitfinex/quotes_ETHUSD_20250909
["timestamp","ask_amount","ask_price","bid_price","bid_amount"]
[1757450897474,0.4704,4292.7,4292.0,6.57351612]
[1757450897667,0.4704,4292.7,4292.0,6.84429427]
[1757450897875,1.789,4293.7,4292.0,6.84429427]
[1757450897876,0.4704,4293.0,4292.0,8.10669427]
[1757450898505,0.4704,4293.0,4292.0,15.45545124]
[1757450899700,1.789,4293.7,4292.0,14.96125124]
[1757450899907,0.4728,4292.1,4292.0,0.4704]
[1757450900054,0.4728,4292.1,4292.0,2.80031612]
[1757450900255,0.4728,4292.1,4292.0,6.13681528]
[1757450900256,0.001,4292.1,4292.0,6.13681528]
[1757450900451,2.724,4292.9,4292.7,2.32953618]
[1757450900452,2.2994,4292.9,4292.7,2.32953618]
[1757450900891,1.829,4292.9,4292.7,2.32953618]
[1757450901096,0.04,4292.9,4292.7,8.32239372]
[1757450901297,0.04,4292.9,4292.7,9.60859372]
[1757450901459,0.04,4292.9,4292.7,13.48159372]
[1757450902686,0.04,4292.9,4292.7,9.11439372]
[1757450902871,0.04,4292.9,4292.7,8.32239372]
[1757450903071,0.0514,4292.8,4292.7,14.92175069]
[1757450905570,0.05,4292.8,4292.7,14.92175069]
[1757450905796,0.1862,4292.8,4292.7,14.92175069]
[1757450906311,0.1862,4292.8,4292.7,15.03775069]
[1757450907114,0.05,4292.8,4292.7,15.03775069]
[1757450907313,0.1849,4292.8,4292.7,15.03775069]
[1757450907505,0.1849,4292.8,4292.7,15.78715069]
[1757450907506,0.05,4292.8,4292.7,15.78715069]
[1757450908185,0.05,4292.8,4292.7,16.28135069]
[1757450909583,0.05,4292.8,4292.7,17.07335069]
[1757450914245,1e-08,4292.8,4292.7,17.07335069]
[1757450915814,0.04,4293.9,4292.7,17.07335069]
[1757450915815,0.04,4293.9,4293.7,9.67775061]
[1757450916158,0.04,4293.9,4293.7,12.67775061]
[1757450916460,0.0264,4293.8,4293.7,12.79375061]
[1757450916665,0.0264,4293.8,4293.7,13.28835061]
[1757450916814,0.025,4293.8,4293.7,13.28835061]
[1757450917030,0.025,4293.8,4293.7,13.74195061]
[1757450917235,0.025,4293.8,4293.7,13.28835061]
[1757450918648,0.0264,4293.8,4293.7,13.28835061]
[1757450918848,0.521,4293.8,4293.7,13.28835061]
[1757450919066,0.6559,4293.8,4293.7,13.28835061]
[1757450919273,0.6559,4293.8,4293.7,5.93959364]
[1757450919605,0.6559,4293.8,4293.7,3.116]
[1757450920177,0.521,4293.8,4293.7,5.44499364]
[1757450920985,0.6559,4293.8,4293.7,0.116]
[1757450923881,0.521,4293.8,4293.7,0.116]
[1757450924290,0.6559,4293.8,4293.7,0.116]
[1757450924878,0.6559,4293.8,4293.7,2.44499364]
[1757450925170,0.6559,4293.8,4293.7,13.32754997]
[1757450925171,0.025,4293.8,4293.7,13.32754997]
[1757450925355,0.04,4294.9,4294.5,2.32852545]
[1757450925539,0.04,4294.9,4294.7,12.67720831]
[1757450925942,0.0264,4294.8,4294.7,12.67720831]
[1757450926141,0.0264,4294.8,4294.7,5.82305134]
[1757450926435,0.025,4294.8,4294.7,5.82305134]
[1757450926635,0.521,4294.8,4294.7,5.82305134]
[1757450927234,0.0264,4294.8,4294.7,5.82305134]
[1757450927639,0.521,4294.8,4294.7,5.82305134]
[1757450927869,0.521,4294.8,4294.7,3.4946]
[1757450928065,0.6559,4294.8,4294.7,5.32845134]
[1757450928266,0.521,4294.8,4294.7,5.32845134]
[1757450929086,0.521,4294.8,4294.7,3.0]
[1757450929520,0.521,4294.8,4294.2,7.34875697]
[1757450929680,0.521,4294.8,4294.3,5.32866809]
[1757450929864,0.0264,4294.8,4294.4,2.328614]
[1757450930069,0.0264,4294.8,4294.7,2.32845134]
[1757450930395,0.025,4294.8,4294.7,2.32845134]
[1757450931490,0.0264,4294.8,4294.7,2.32845134]
[1757450932579,0.025,4294.8,4294.7,2.32845134]
[1757450932979,0.025,4294.8,4294.7,2.82305134]
[1757450933605,0.025,4294.8,4294.7,3.11235134]
[1757450933780,0.025,4294.8,4294.7,2.82305134]
[1757450933983,0.026,4294.8,4294.7,2.82305134]
[1757450934205,0.0274,4294.8,4294.7,2.82305134]
[1757450934372,0.0274,4294.8,4294.7,0.4946]
[1757450934568,0.522,4294.8,4294.7,0.4946]
[1757450934970,0.0274,4294.8,4294.7,0.4946]
[1757450935184,0.0274,4294.8,4294.7,2.93905134]
[1757450935595,0.0274,4294.8,4294.7,0.6106]
[1757450936000,0.0274,4294.8,4294.7,2.93905134]
[1757450936202,0.0274,4294.8,4294.7,0.6106]
[1757450937494,0.0274,4294.8,4294.7,2.93905134]
[1757450938033,0.0274,4294.8,4294.7,0.6106]
[1757450939352,0.0274,4294.8,4294.7,2.93905134]
[1757450939634,0.0274,4294.8,4294.7,0.6106]
[1757450940731,0.0274,4294.8,4294.7,2.93905134]
[1757450941336,0.0274,4294.8,4294.7,0.6106]
[1757450941931,0.5139,4294.8,4294.7,0.6106]
[1757450942098,0.5139,4294.8,4294.7,0.116]
[1757450942927,0.0274,4294.8,4294.7,0.116]
[1757450943548,0.5139,4294.8,4294.7,0.116]
[1757450944248,0.0274,4294.8,4294.7,0.116]
[1757450944847,0.5139,4294.8,4294.7,0.116]
[1757450945049,1.11581465,4294.8,4294.2,2.32871278]
[1757450945351,0.4865,4294.7,4294.5,0.116]
[1757450945652,0.6214,4294.7,4294.5,0.116]
[1757450945862,0.1362,4294.6,4294.5,0.116]
[1757450946219,0.4892,4294.6,4294.5,0.116]
[1757450946572,0.4879,4294.6,4294.5,0.116]
[1757450947318,0.026,4294.8,4294.5,0.116]
[1757450947519,0.026,4294.8,4294.6,2.32849581]
[1757450947979,0.026,4294.8,4294.7,0.411]
[1757450948134,3.9,4294.8,4294.7,2.73945134]
[1757450948317,3.9,4294.8,4294.7,3.17785134]
[1757450948974,3.9,4294.8,4294.7,10.52660831]
[1757450949182,0.026,4294.8,4294.7,11.00970831]
[1757450949778,0.026,4294.8,4294.7,15.41342]
[1757450950116,0.001,4294.8,4294.7,16.20542]
[1757450950320,0.001,4295.3,4295.2,2.32818029]
[1757450950640,0.001,4295.3,4295.2,12.79293726]
[1757450950952,0.001,4295.3,4295.2,14.00943726]
[1757450951154,0.001,4295.3,4295.2,16.03120655]
[1757450951946,0.001,4295.3,4295.2,15.54810655]
[1757450953731,0.001,4295.3,4295.2,7.76094958]
[1757450954066,0.001,4295.3,4295.2,5.44418029]
[1757450954237,0.001,4295.3,4295.2,6.17758029]
[1757450955057,0.001,4295.3,4295.2,5.62318029]
[1757450955258,0.001,4295.3,4295.2,6.06158029]
[1757450955936,0.001,4295.3,4295.2,5.32818029]
[1757450956362,0.001,4295.3,4295.2,5.62318029]
[1757450956596,0.001,4295.3,4295.2,7.15319958]
[1757450957071,0.001,4295.3,4295.2,7.59159958]
[1757450958451,0.001,4295.3,4295.2,6.85819958]
[1757450958770,0.001,4295.3,4295.2,7.59159958]
[1757450962391,0.001,4295.3,4295.2,8.07469958]
[1757450963313,0.001,4295.3,4295.2,16.76730436]
[1757450964377,0.001,4295.3,4295.2,17.55930436]
[1757450965232,0.001,4295.3,4295.2,17.67530436]
[1757450967514,0.001,4295.3,4295.2,21.55330436]
[1757450970530,0.001,4295.3,4295.2,21.64644404]
[1757450981695,0.001,4295.3,4295.2,17.76844404]
[1757450981866,0.001,4295.3,4295.2,21.64744404]
[1757450982709,0.001,4295.3,4295.2,20.72594404]
[1757450982874,0.001,4295.3,4295.2,21.18314404]
[1757450983811,0.001,4295.3,4295.2,20.43094404]
[1757450984309,0.001,4295.3,4295.2,21.19364404]
[1757450985704,0.001,4295.3,4295.2,21.68364404]
[1757450986916,1e-08,4295.8,4295.7,11.02051408]
[1757450987085,1e-08,4295.8,4295.7,19.23336347]
[1757450987273,1e-08,4295.8,4295.7,19.80656347]
[1757450988013,1e-08,4295.8,4295.7,20.11206347]
[1757450988208,0.467,4296.4,4296.3,2.3275842]
[1757450988746,0.4684,4296.4,4296.3,2.4435842]
[1757450990168,0.4694,4296.4,4296.3,2.4435842]
[1757450990609,1.2574,4296.5,4296.4,5.32753002]
[1757450991017,0.1362,4296.6,4296.5,2.32747585]
[1757450991306,0.1717543,4296.9,4296.7,2.32736751]
[1757450991493,0.0369543,4296.9,4296.7,2.32736751]
[1757450991702,0.1611,4296.8,4296.7,2.44336751]
[1757450992105,0.0263,4296.8,4296.7,2.44336751]
[1757450994321,0.025,4296.8,4296.7,5.44336751]
[1757450994500,0.0263,4296.8,4296.7,5.91649807]
[1757450995134,0.025,4296.8,4296.7,5.91649807]
[1757450995343,0.025,4296.8,4296.7,6.67919807]
[1757450995704,0.025,4296.8,4296.7,11.05019807]
[1757450995899,0.025,4296.8,4296.7,11.84219807]
[1757450998806,0.025,4296.8,4296.7,11.35219807]
[1757450999826,0.0263,4296.8,4296.7,10.58949807]
[1757451000036,0.025,4296.8,4296.7,10.58949807]
[1757451000412,0.1598,4296.8,4296.7,5.91649807]
[1757451000613,0.025,4296.8,4296.7,5.44336751]
[1757451001029,0.1598,4296.8,4296.7,5.44336751]
[1757451002741,0.025,4296.8,4296.7,5.44336751]
[1757451003451,0.025,4296.8,4296.7,7.85189185]
[1757451004929,0.0263,4296.8,4296.7,5.44336751]
[1757451007722,0.025,4296.8,4296.7,7.43446751]
[1757451010037,0.0369543,4296.9,4296.8,6.11931334]
[1757451010356,0.0369543,4296.9,4296.8,21.25812379]
[1757451010650,0.0369543,4296.9,4296.8,21.55722379]
[1757451011630,0.0369543,4296.9,4296.8,17.66722379]
[1757451011827,0.0369543,4296.9,4296.8,21.55722379]
[1757451012174,0.0369543,4296.9,4296.8,11.66551901]
[1757451012325,0.0369543,4296.9,4296.8,12.86461901]
[1757451012531,0.0369543,4296.9,4296.8,11.66551901]
[1757451012763,0.0369543,4296.9,4296.8,12.40301901]
[1757451013130,0.0369543,4296.9,4296.8,11.66551901]
[1757451013332,0.0382543,4296.9,4296.8,11.66551901]
[1757451014250,0.4935543,4296.9,4296.8,5.32731334]
[1757451014564,0.0382543,4296.9,4296.8,5.32731334]
[1757451015082,0.0369543,4296.9,4296.8,5.62641334]
[1757451015255,0.0369543,4296.9,4296.8,10.41541334]
[1757451015563,0.0369543,4296.9,4296.8,12.68332131]
[1757451018973,0.0369543,4296.9,4296.8,13.47532131]
[1757451020492,0.0369543,4296.9,4296.8,20.8085794]
[1757451021598,0.025,4297.8,4297.7,2.32682597]
[1757451021954,0.0263,4297.8,4297.7,2.32682597]
[1757451023294,0.025,4297.8,4297.7,2.32682597]
[1757451023467,0.1598,4297.8,4297.7,2.35009422]
[1757451023667,0.1598,4297.8,4297.7,6.02510204]
[1757451023868,0.025,4297.8,4297.7,6.02510204]
[1757451024261,0.1585,4297.8,4297.7,6.02510204]
[1757451027822,0.1595,4297.8,4297.7,6.02510204]
[1757451029088,0.1595,4297.8,4297.7,6.14110204]
[1757451029684,0.026,4297.8,4297.7,6.14110204]
[1757451031633,0.026,4297.8,4297.7,6.87860204]
[1757451031835,0.026,4297.8,4297.7,6.89380204]
[1757451031991,0.026,4297.8,4297.7,7.34590204]
[1757451032849,0.026,4297.8,4297.7,12.36785561]
[1757451033138,0.026,4297.8,4297.7,19.7011137]
[1757451034434,0.04,4297.9,4297.8,6.11877183]
[1757451034435,1e-08,4297.9,4297.8,6.11877183]
[1757451034753,1e-08,4297.9,4297.8,8.35932122]
[1757451034940,1e-08,4297.9,4297.8,8.66942122]
[1757451036243,1e-08,4297.9,4297.8,6.66162122]
[1757451036555,1e-08,4297.9,4297.8,9.20777183]
[1757451038369,0.00130001,4297.9,4297.8,9.20777183]
[1757451038539,1e-08,4297.9,4297.8,9.20777183]
[1757451039022,1e-08,4297.9,4297.8,9.20677183]
[1757451039526,1e-08,4297.9,4297.8,16.54002992]
[1757451040470,0.00130001,4297.9,4297.8,16.54002992]
[1757451040627,0.00130001,4297.9,4297.8,16.75618293]
[1757451040959,0.00130001,4297.9,4297.8,12.87618293]
[1757451041922,0.00130001,4297.9,4297.8,12.87618321]
[1757451042272,1e-08,4297.9,4297.8,12.87618321]
[1757451043026,1e-08,4297.9,4297.8,13.63838321]
[1757451043227,1e-08,4297.9,4297.8,15.90629118]
[1757451044047,1e-08,4297.9,4297.8,16.35989118]
[1757451046072,1e-08,4297.9,4297.8,16.48959711]
[1757451046371,1e-08,4297.9,4297.8,17.39759711]
[1757451047338,0.00100001,4297.9,4297.8,17.39759711]
[1757451048772,0.00100001,4297.9,4297.8,17.18144382]
[1757451052780,0.00100001,4297.9,4297.8,14.18144382]
[1757451053369,0.00100001,4297.9,4297.8,17.18150088]
[1757451053569,0.00230001,4297.9,4297.8,15.17370088]
[1757451053772,0.00230001,4297.9,4297.8,5.57253482]
[1757451054570,0.59110001,4297.9,4297.7,0.09308376]
[1757451054756,0.59110001,4297.9,4297.5,2.32689293]
[1757451055065,0.5888,4297.8,4297.5,2.32689293]
[1757451055263,0.1348,4297.6,4297.5,2.32689293]
[1757451055573,0.5914,4297.6,4297.4,2.32697734]
[1757451055771,0.4566,4297.5,4297.4,2.32697734]
[1757451055970,0.4566,4297.5,4297.3,3.4553]
[1757451055971,0.5901,4297.5,4297.3,0.4553]
[1757451056126,0.5901,4297.5,4296.8,0.027]
[1757451056127,0.29439512,4297.4,4296.8,0.027]
[1757451056331,2.32973171,4297.4,4296.8,0.027]
[1757451056533,0.1322,4296.9,4296.8,0.027]
[1757451056731,1.9182,4296.9,4296.8,0.027]
[1757451056930,2.3775,4296.9,4296.8,0.027]
[1757451057239,3.23586938,4296.9,4296.8,0.027]
[1757451059773,3.23586938,4296.9,4296.8,0.24294166]
[1757451060289,3.23186938,4296.9,4296.8,0.24294166]
[1757451060464,3.23186938,4296.9,4296.8,2.570255]
[1757451060667,2.77656938,4296.9,4296.8,2.35431334]
[1757451060970,2.77656938,4296.9,4296.8,0.027]
[1757451062063,3.23586938,4296.9,4296.8,0.027]
[1757451062991,5.56312856,4296.9,4296.8,0.027]
[1757451065716,3.23186938,4296.9,4296.8,0.027]
[1757451065856,1.9182,4296.9,4296.8,0.027]
[1757451066061,1.9182,4296.9,4296.8,3.20431334]
[1757451066062,5.665,4296.9,4296.8,3.20431334]
[1757451067169,5.7998,4296.9,4296.8,0.143]
[1757451067369,6.83508,4296.9,4296.8,0.027]
[1757451067686,6.37978,4296.9,4296.8,0.027]
[1757451069098,6.37978,4296.9,4296.8,0.15625511]
[1757451069410,6.37978,4296.9,4296.8,0.027]
[1757451072495,6.83508,4296.9,4296.8,0.027]
[1757451072715,6.83638,4296.9,4296.8,0.027]
[1757451073246,6.83508,4296.9,4296.8,0.027]
[1757451073950,6.83638,4296.9,4296.8,0.027]
[1757451074111,9.16363918,4296.9,4296.8,0.027]
[1757451074698,1.786,4296.9,4296.8,2.65221334]
[1757451074897,2.32598794,4299.3,4297.2,2.32709671]
[1757451074898,3.343,4297.3,4297.2,2.32709671]
[1757451075141,1.787,4298.0,4297.3,2.32703384]
[1757451075338,3.901,4297.8,4297.6,2.32687279]
[1757451076103,3.901,4297.8,4297.7,2.32682597]
[1757451076455,12.25975809,4297.8,4296.8,0.027]
[1757451076608,2.32711317,4297.2,4296.8,0.027]
[1757451076940,5.06,4297.8,4296.8,0.027]
[1757451076941,5.687,4297.1,4296.8,0.027]
[1757451077126,0.5687,4297.0,4296.8,0.15627022]
[1757451077328,0.5687,4297.0,4296.8,0.027]
[1757451077533,0.4566,4296.9,4296.8,0.027]
[1757451077704,0.5901,4296.9,4296.8,0.027]
[1757451077905,0.0013,4296.9,4296.8,0.027]
[1757451078134,0.63905,4296.9,4296.8,0.027]
[1757451078337,3.904,4296.9,4296.8,0.027]
[1757451078749,3.9063,4296.9,4296.8,0.027]
[1757451080942,6.23355918,4296.9,4296.8,0.027]
[1757451081144,6.82235918,4296.9,4296.8,0.027]
[1757451083560,6.23355918,4296.9,4296.8,0.027]
[1757451083760,7.26833344,4296.9,4296.8,0.027]
[1757451085084,7.85713344,4296.9,4296.8,0.027]
[1757451088087,10.85713344,4296.9,4296.8,0.027]
[1757451088284,11.35845318,4296.9,4296.8,0.027]
[1757451088584,12.01695318,4296.9,4296.8,0.027]
[1757451088785,12.77718977,4296.9,4296.8,0.027]
[1757451088957,12.36805955,4296.9,4296.8,0.027]
[1757451089486,12.36805955,4296.9,4296.4,0.002]
[1757451089487,6.11947585,4296.5,4296.4,0.002]
[1757451089687,11.60068955,4296.5,4296.4,0.002]
[1757451089886,12.19208955,4296.5,4296.4,0.002]
[1757451090073,12.41264906,4296.5,4296.4,0.002]
[1757451090279,12.50583084,4296.5,4296.4,0.002]
[1757451093149,13.3410961,4296.5,4296.4,0.002]
[1757451093353,12.50583084,4296.5,4296.4,0.002]
[1757451094701,3.792,4296.4,4295.8,0.025]
[1757451094869,3.11980092,4295.9,4295.8,0.025]
[1757451095075,10.37986043,4295.9,4295.8,0.025]
[1757451095376,11.33918017,4295.9,4295.8,0.025]
[1757451096090,11.33648017,4295.9,4295.8,0.025]
[1757451096260,12.20848965,4295.9,4295.8,0.025]
[1757451098213,11.75318965,4295.9,4295.8,0.025]
[1757451099283,11.92927534,4295.9,4295.8,0.025]
[1757451100416,11.79377534,4295.9,4295.8,0.025]
[1757451100620,6.91868965,4295.9,4295.8,0.3108]
[1757451100792,0.21755951,4295.9,4295.8,1.2342]
[1757451100997,3.907,4295.9,4295.8,1.2342]
[1757451101399,6.23480092,4295.9,4295.8,1.2342]
[1757451103402,3.907,4295.9,4295.8,1.2342]
[1757451103713,4.53046429,4295.9,4295.8,1.2342]
[1757451103914,6.85826521,4295.9,4295.8,1.2342]
[1757451104226,6.85826521,4295.9,4295.8,1.2362]
[1757451105183,7.07523612,4295.9,4295.8,1.2362]
[1757451106195,4.7484352,4295.9,4295.8,1.2362]
[1757451106394,4.12297091,4295.9,4295.8,1.2362]
[1757451107235,6.45077183,4295.9,4295.8,0.7692]
[1757451108835,6.45207183,4295.9,4295.8,0.027]
[1757451109038,7.38007482,4295.9,4295.8,0.027]
[1757451109237,7.37877482,4295.9,4295.8,0.027]
[1757451115920,7.16180391,4295.9,4295.8,0.027]
[1757451117122,8.08860391,4295.9,4295.8,0.027]
[1757451117334,9.39335932,4295.9,4295.8,0.027]
[1757451117852,8.93805932,4295.9,4295.8,0.027]
[1757451118018,7.78942143,4295.9,4295.8,0.7692]
[1757451118226,3.38650499,4295.9,4295.8,1.2362]
[1757451118524,7.28850499,4295.9,4295.8,1.2362]
[1757451118713,1.05870407,4295.9,4295.8,1.2362]
[1757451118914,7.15780391,4295.9,4295.8,1.2362]
[1757451119127,7.28850499,4295.9,4295.8,1.2362]
[1757451119324,4.03370108,4295.9,4295.8,1.2362]
[1757451119529,3.903,4295.9,4295.8,1.2362]
[1757451122058,6.36283674,4295.9,4295.8,0.027]
[1757451122958,6.58073446,4295.9,4295.8,0.027]
[1757451123150,8.07906967,4295.9,4295.8,0.027]
[1757451126724,12.37328611,4295.9,4295.8,0.027]
[1757451126925,13.18005723,4295.9,4295.8,0.027]
[1757451127464,14.01532249,4295.9,4295.3,0.002]
[1757451127650,5.95592367,4295.4,4295.3,0.002]
[1757451127992,13.93055061,4295.4,4295.3,0.002]
[1757451128281,14.52075061,4295.4,4295.3,0.002]
[1757451128655,15.31275061,4295.4,4295.3,0.002]
[1757451129585,15.18055061,4295.4,4295.3,0.002]
[1757451130069,15.18049151,4295.4,4295.3,0.002]
[1757451130271,14.55263973,4295.4,4295.3,0.002]
[1757451130582,14.55368205,4295.4,4295.3,0.002]
[1757451131168,15.05039468,4295.4,4295.3,0.002]
[1757451131371,14.42294623,4295.4,4295.3,0.002]
[1757451131552,15.18259468,4295.4,4295.3,0.002]
[1757451131879,14.55514623,4295.4,4295.3,0.002]
[1757451133077,15.39228193,4295.4,4295.3,0.002]
[1757451133278,14.55514623,4295.4,4295.3,0.002]
[1757451133499,14.5549169,4295.4,4295.3,0.002]
[1757451137013,14.4227169,4295.4,4295.3,0.002]
[1757451138669,13.9674169,4295.4,4295.3,0.002]
[1757451140696,13.9634169,4295.4,4295.3,0.002]
[1757451141206,14.5509169,4295.4,4295.3,0.002]
[1757451142405,14.5509169,4295.4,4295.1,1e-08]
[1757451142406,5.57118029,4295.2,4295.1,1e-08]
[1757451142566,22.10718043,4295.2,4295.1,1e-08]
[1757451142766,22.69738043,4295.2,4295.1,1e-08]
[1757451144308,21.3500198,4295.2,4295.1,1e-08]
[1757451144509,22.20630739,4295.2,4295.1,1e-08]
[1757451144718,22.07540739,4295.2,4295.1,1e-08]
[1757451144922,22.20630739,4295.2,4295.1,1e-08]
[1757451145320,22.2060399,4295.2,4295.1,1e-08]
[1757451147727,21.6198399,4295.2,4295.1,1e-08]
[1757451149431,7.91373956,4295.2,4295.1,0.29090001]
[1757451149596,11.81373956,4295.2,4295.1,1.21780001]
[1757451149791,7.91373956,4295.2,4295.1,1.21780001]
[1757451150004,7.12173956,4295.2,4295.1,1.21780001]
[1757451150209,11.02173956,4295.2,4295.1,1.21780001]
[1757451150529,11.81373956,4295.2,4295.1,1.21780001]
[1757451150741,11.59633151,4295.2,4295.1,1.21780001]
[1757451151301,11.8138041,4295.2,4295.1,1.21780001]
[1757451151497,11.59633151,4295.2,4295.1,1.21780001]
[1757451152301,11.81385788,4295.2,4295.1,1.21780001]
[1757451153706,11.59633151,4295.2,4295.1,1.21780001]
[1757451154407,7.69633151,4295.2,4295.1,1.21780001]
[1757451154606,10.80333151,4295.2,4295.1,1.21780001]
[1757451155541,10.80333151,4295.2,4295.1,0.76310001]
[1757451155715,10.80333151,4295.2,4295.1,0.29090001]
[1757451156121,10.80333151,4295.2,4295.1,0.76100001]
[1757451156319,7.7483636,4295.2,4295.1,0.76100001]
[1757451156531,11.02124352,4295.2,4295.1,0.76100001]
[1757451156945,11.02124352,4295.2,4295.1,1.23510001]
[1757451157446,11.6473636,4295.2,4295.1,1.23510001]
[1757451158155,11.42945873,4295.2,4295.1,1.23510001]
[1757451158360,10.80333865,4295.2,4295.1,1.23510001]
[1757451158777,11.43115399,4295.2,4295.1,1.23710001]
[1757451159377,17.02015399,4295.2,4295.1,1.23710001]
[1757451159830,16.39233865,4295.2,4295.1,1.23710001]
[1757451160269,16.39245958,4295.2,4295.1,1.23710001]
[1757451161451,17.0204246,4295.2,4295.1,1.23710001]
[1757451161646,17.8124246,4295.2,4295.1,0.29290001]
[1757451161851,17.18575958,4295.2,4295.1,0.00200001]
[1757451162177,19.76759085,4295.2,4295.1,0.00200001]
[1757451163675,15.86729085,4295.2,4295.1,0.00200001]
[1757451163977,19.76429085,4295.2,4295.1,0.00200001]
[1757451164984,19.76559085,4295.2,4295.1,0.00200001]
[1757451165471,19.76429085,4295.2,4295.1,0.00200001]
[1757451165651,19.76559085,4295.2,4295.1,0.00200001]
[1757451166663,19.76429008,4295.2,4295.1,0.00200001]
[1757451167295,20.60142578,4295.2,4295.1,0.00200001]
[1757451168049,20.60142578,4295.2,4295.1,1.25690001]
[1757451168050,18.14942578,4295.2,4295.1,1.25690001]
[1757451168249,17.31229008,4295.2,4295.1,1.25690001]
[1757451171180,17.31229008,4295.2,4295.1,0.78680001]
[1757451171388,17.31229008,4295.2,4295.1,1.25690001]
[1757451172391,17.31229008,4295.2,4295.1,0.78280001]
[1757451176102,17.31229008,4295.2,4295.1,0.00200001]
[1757451176103,17.31281112,4295.2,4295.1,0.00200001]
[1757451176289,17.31411112,4295.2,4295.1,0.00200001]
[1757451177001,17.31281112,4295.2,4295.1,0.00200001]
[1757451178087,17.31411112,4295.2,4295.1,0.00200001]
[1757451178296,18.3694316,4295.2,4295.1,0.00200001]
[1757451178880,18.3704316,4295.2,4295.1,0.00200001]
[1757451179679,18.3691316,4295.2,4295.1,0.00200001]
[1757451179924,18.3691316,4295.2,4295.1,1.25690001]
[1757451180072,18.15094682,4295.2,4295.1,1.25690001]
[1757451180272,14.25494682,4295.2,4295.1,1.25690001]
[1757451180608,17.79808338,4295.2,4295.1,1.25690001]
[1757451180814,16.51813877,4295.2,4295.1,1.25690001]
[1757451187121,17.31143877,4295.2,4295.1,0.00200001]
[1757451188965,18.14950883,4295.2,4295.1,0.00200001]
[1757451189148,17.90023877,4295.2,4295.1,0.00200001]
[1757451189349,17.31143877,4295.2,4295.1,0.00200001]
[1757451193839,3.792,4294.7,4294.6,0.002]
[1757451194045,16.72093101,4294.7,4294.6,0.002]
[1757451194258,18.34602257,4294.7,4294.6,0.002]
[1757451194458,19.18418235,4294.7,4294.6,0.002]
[1757451194771,20.39628819,4294.7,4294.6,0.002]
[1757451197244,19.55812841,4294.7,4294.6,0.002]
[1757451199451,19.42332841,4294.7,4294.6,0.002]
[1757451200731,19.42332841,4294.7,4294.6,0.2927]
[1757451200975,12.07322807,4294.7,4294.6,1.212]
[1757451201160,10.86112223,4294.7,4294.6,1.212]
[1757451201472,9.8508778,4294.7,4294.6,1.212]
[1757451201872,6.8508778,4294.7,4294.6,1.212]
[1757451202173,6.348398,4294.7,4294.6,1.212]
[1757451202473,6.8508778,4294.7,4294.6,1.212]
[1757451204158,7.83159446,4294.7,4294.6,0.7707]
[1757451204382,7.83159446,4294.7,4294.6,1.212]
[1757451204584,8.62345594,4294.7,4294.6,0.002]
[1757451204788,9.4706647,4294.7,4294.6,0.002]
[1757451205094,9.4693647,4294.7,4294.6,0.002]
[1757451205449,12.4693647,4294.7,4294.6,0.002]
[1757451205651,13.63077303,4294.7,4294.6,0.002]
[1757451208619,13.62947303,4294.7,4294.6,0.002]
[1757451209182,13.63217303,4294.7,4294.6,0.002]
[1757451210089,13.62947303,4294.7,4294.6,0.002]
[1757451213097,16.08047303,4294.7,4294.6,0.002]
[1757451213310,13.62947303,4294.7,4294.6,0.002]
[1757451217025,9.74047303,4294.7,4294.6,1.2462]
[1757451217178,14.25352009,4294.7,4294.6,1.2462]
[1757451217516,14.25354376,4294.7,4294.6,1.2462]
[1757451217804,14.25354366,4294.7,4294.6,1.2462]
[1757451219886,19.84254366,4294.7,4294.6,1.2462]
[1757451220926,19.05054366,4294.7,4294.6,1.2462]
[1757451221298,14.22373928,4294.7,4294.6,1.2462]
[1757451228401,8.01028794,4294.7,4294.6,1.2462]
[1757451228615,13.58845134,4294.7,4294.6,1.2462]
[1757451228820,14.09093114,4294.7,4294.6,1.2462]
[1757451231231,11.7624798,4294.7,4294.6,1.2462]
[1757451231436,11.26,4294.7,4294.6,1.2462]
[1757451238137,7.377,4294.7,4294.6,1.37122]
[1757451238438,11.26,4294.7,4294.6,1.37122]
[1757451240842,11.26,4294.7,4294.6,1.2462]
[1757451243983,13.72325134,4294.7,4294.6,0.002]
[1757451247952,13.58845134,4294.7,4294.6,0.002]
[1757451248154,13.58845134,4294.7,4294.6,0.302]
[1757451248370,13.58845134,4294.7,4294.6,0.7621]
[1757451248571,13.58845134,4294.7,4294.6,0.302]
[1757451248912,13.58845134,4294.7,4294.6,0.7621]
[1757451250788,7.377,4294.7,4294.6,0.7923]
[1757451250984,11.26,4294.7,4294.6,1.2524]
[1757451251481,13.58845134,4294.7,4294.6,1.2524]
[1757451251682,11.26,4294.7,4294.6,1.2524]
[1757451254286,7.377,4294.7,4294.6,1.2524]
[1757451254484,11.26,4294.7,4294.6,1.2524]
[1757451255221,5.671,4294.7,4294.6,1.2524]
[1757451259247,5.671,4294.7,4294.6,3.58090556]
[1757451259759,5.671,4294.7,4294.6,1.2524]
[1757451259910,5.671,4294.7,4294.6,0.002]
[1757451260114,6.3671,4294.7,4294.6,0.002]
[1757451260322,5.7883,4294.7,4294.6,0.002]
[1757451260528,5.787,4294.7,4294.6,0.002]
[1757451262746,8.11545134,4294.7,4294.6,0.002]
[1757451262918,8.11815134,4294.7,4294.6,0.002]
[1757451263942,5.787,4294.7,4294.6,0.002]
[1757451265344,8.11545134,4294.7,4294.6,0.002]
[1757451266142,5.787,4294.7,4294.6,0.002]
[1757451266522,8.11545134,4294.7,4294.6,0.002]
[1757451266952,5.787,4294.7,4294.6,0.002]
[1757451268947,8.11545134,4294.7,4294.6,0.002]
[1757451270345,9.21287034,4294.7,4294.6,0.002]
[1757451271964,9.66817034,4294.7,4294.6,0.002]
[1757451272163,10.43376516,4294.7,4294.6,0.002]
[1757451273063,9.84626516,4294.7,4294.6,0.002]
[1757451274265,9.84356516,4294.7,4294.6,0.002]